[Event "CCT Chessable Masters Playoffs 2025"]
[Site "Online"]
[Date "2025.02.18"]
[Round "1"]
[White "Giri, Anish"]
[Black "Firouzja, Alireza"]
[Result "0-1"]
[Annotator "TA"]
[ECO "A11"]
[WhiteElo "2728"]
[BlackElo "2760"]
[PlyCount "72"]
[EventDate "2025.02.13"]
[EventType "k.o."]
[EventCountry "NET"]
[SourceTitle "playchess.com"]
[Source "ChessBase"]
[SourceQuality "1"]
[TimeControl "600"]

{[%evp 12,72,12,8,8,-20,-7,-55,-54,-51,-64,-58,-52,-45,-49,-46,-42,-57,-42,-55,-52,-60,-39,-52,-53,-58,-58,-59,-59,-56,-56,-77,-75,-123,-113,-116,-41,-72,-54,-151,-53,-96,-97,-84,-83,-70,-68,-174,-174,-177,-108,-870,-516,-876,-510,-986,-197,-564,-544,-528,-511,-496,-464]} 1. c4 {[%emt 0:00:00]} c6 {[%emt 0:00:01]} 2. Nf3 {[%emt 0:00:15]} d5 {[%emt 0:00:01]} 3. e3 {[%emt 0:00:00]} Nf6 {[%emt 0:00:01]} 4. Nc3 {[%emt 0:00:01]} e6 {[%emt 0:00:01]} 5. b3 {[%emt 0:00:02]} Bd6 {[%emt 0:00:06]} 6. Bb2 {[%emt 0:00:01]} O-O {[%emt 0:00:04]} 7. Be2 {[%emt 0:00:03]} b6 {[%emt 0:00:13] Recently 7...e5 got a lot of attention. A11: English Opening: 1...c6.} 8. Rg1 {[%emt 0:00:20]} e5 $146 {[%emt 0:01:01][%cal Od5d4] Black wants to play ...d4!.} ({Predecessor:} 8... Bb7 9. g4 Na6 10. h4 Ne4 11. Nxe4 dxe4 12. Ng5 Nc5 13. Qc2 Rb8 14. b4 Nd3+ 15. Bxd3 exd3 16. Qxd3 {1-0 Duda,J (2731)-Bharath,S (2495) Titled Tuesday intern op 04th Oct Early blitz 2022 (9)}) 9. cxd5 {[%emt 0:00:21]} (9. d4 $1 $11 e4 10. Ne5) 9... cxd5 $15 {[%emt 0:00:00] Black is slightly better.} 10. Nb5 {[%emt 0:00:06][%cal Ob5d6]} e4 {[%emt 0:00:06]} 11. Ne5 {[%emt 0:00:18]} Re8 {[%emt 0:00:05]} 12. Nxd6 {[%emt 0:00:17]} Qxd6 {[%emt 0:00:01]} 13. Rc1 {[%emt 0:00:11]} Bb7 {[%emt 0:00:49]} 14. Qc2 {[%emt 0:01:14]} Na6 {[%emt 0:00:56] Against Qc7} (14... Rxe5 15. Qc7 Qxc7 16. Rxc7 $16) 15. Bxa6 {[%emt 0:00:25]} Bxa6 {[%emt 0:00:01]} 16. Qc7 {[%emt 0:00:22]} Qe6 {[%emt 0:00:10]} (16... Qxc7 17. Rxc7 Rec8 18. Rc6 Nd7) 17. Rc6 {[%emt 0:00:30]} Rec8 {[%emt 0:00:25]} (17... Re7 {simplifies} 18. Rxe6 Rxc7 19. Rc6 Rac8) 18. Qxc8+ {[%emt 0:01:12]} Qxc8 {[%emt 0:00:02]} 19. Rxc8+ {[%emt 0:00:00]} Rxc8 {[%emt 0:00:00]} 20. Kd1 {[%emt 0:00:18] Dodges Rc2} Ne8 {[%emt 0:00:05]} 21. f4 {[%emt 0:00:09]} Nd6 {[%emt 0:00:09]} 22. a4 {[%emt 0:00:08]} (22. Bc3 $142) 22... f6 $17 {[%emt 0:00:28]} 23. Ng4 {[%emt 0:00:01]} h5 {[%emt 0:00:01]} (23... Bd3 $17 24. Bc3 Nf5) 24. Nf2 $15 {[%emt 0:00:02]} Nf5 {[%emt 0:00:01]} 25. g3 {[%emt 0:00:24]} (25. Re1 $15) 25... Kf7 {[%emt 0:00:05]} (25... Bd3 $1 $17 {...Bc2+ is the strong threat.} 26. Nxd3 exd3) 26. h3 {[%emt 0:00:07]} h4 $36 {[%emt 0:00:20][%mdl 2048] Black is really pushing.} 27. g4 {[%emt 0:00:16]} Ng3 {[%emt 0:00:01]} 28. Nh1 {[%emt 0:00:33]} Nf1 $1 {[%emt 0:00:21] Black is much more active.} 29. Rg2 {[%emt 0:00:41] [#]} ({White should play} 29. Nf2 $15) 29... Bd3 $1 $19 {[%emt 0:00:04]} 30. Bd4 {[%emt 0:00:39] [#]} Rc2 {[%emt 0:00:08]} (30... Bc2+ $1 $19 31. Ke2 Bxb3 32. Kxf1 Rc1+ (32... Bxa4 33. Rg1 $16) 33. Kf2 Rxh1) 31. g5 $2 {[%emt 0:00:04][%mdl 8192] Loses the game.} (31. Rf2 $17 Rc6 32. g5) 31... Ra2 {[%emt 0:00:30][%cal Of1e3]} 32. gxf6 {[%emt 0:00:01]} (32. Ke1 $142 Nxe3 33. dxe3 Rxg2 34. Nf2) 32... gxf6 {[%emt 0:00:00][%cal Of1e3]} 33. f5 {[%emt 0:00:00]} (33. Ke1 $142 Rc2 34. Nf2 Rc1+ (34... Nxd2 $2 35. Bxf6 Bf1 36. Kd1 $19) (34... Rxd2 $2 35. Rg1 $19) 35. Nd1) 33... Ra3 $2 {[%emt 0:00:01]} (33... Nxe3+ 34. dxe3 Rxg2) 34. Nf2 $2 {[%emt 0:00:03]} (34. Rg6 {nothing else works.}) 34... Rxb3 {[%emt 0:00:19][%cal Rb3b1] Black is clearly winning.} 35. Nxd3 {[%emt 0:00:04]} exd3 {[%emt 0:00:00]} (35... Rxd3 36. Rf2 Ng3 37. Bc3 $15) 36. Kc1 {[%emt 0:00:07] Inhibits Rb1+.} Ng3 {[%emt 0:00:02] Weighted Error Value: White=0.72/Black=0.76  Loses game:     	White=1     	---        Mistake:       	White=7     	Black=3      Inaccurate:     	White=2     	Black=1      OK:         	White=11    	Black=8      Best:        	White=2     	Black=2      Strong:       	---       	Black=1} 0-1

[Event "CCT Chessable Masters Playoffs 2025"]
[Site "Online"]
[Date "2025.02.18"]
[Round "1"]
[White "Yu, Yangyi"]
[Black "So, Wesley"]
[Result "1/2-1/2"]
[Annotator "TA"]
[ECO "B51"]
[WhiteElo "2715"]
[BlackElo "2747"]
[PlyCount "89"]
[EventDate "2025.02.13"]
[EventType "k.o."]
[EventCountry "NET"]
[SourceTitle "playchess.com"]
[Source "ChessBase"]
[SourceQuality "1"]
[TimeControl "600"]

{[%evp 9,89,6,11,8,108,35,77,36,46,0,0,0,0,0,0,0,-3,-27,-27,-43,-8,-24,-18,-27,-20,-39,-20,-12,6,0,0,0,0,-36,-43,-58,-46,-62,-47,-47,-43,-49,-45,-50,-50,-61,-44,-47,-21,-11,-24,-97,-95,-104,0,0,0,0,0,0,0,0,72,68,59,53,99,-64,95,102,105,85,95,103,98,97,88,0,115,0,98,0]} 1. e4 {[%emt 0:00:00]} c5 {[%emt 0:00:03]} 2. Nf3 {[%emt 0:00:02]} d6 {[%emt 0:00:02]} 3. Bb5+ {[%emt 0:00:01]} Nd7 {[%emt 0:00:01]} 4. c4 {[%emt 0:00:01]} Ngf6 {[%emt 0:00:04]} 5. Nc3 {[%emt 0:00:02]} a6 {[%emt 0:00:15]} 6. Ba4 {[%emt 0:00:02] B51: Sicilian: Moscow Variation (3 Bb5+) without 3...Bd7.} b6 $146 {[%emt 0:00:01]} (6... Qc7 $11) ({Predecessor:} 6... e6 7. O-O Be7 8. d3 O-O 9. Qe2 Qc7 10. Ne1 Ne5 11. f4 Nc6 12. Nf3 Nd4 13. Nxd4 cxd4 {0-1 Anton Guijarro,D (2670)-Grischuk,A (2732) Wch Rapid Samarkand 2023 (13)}) 7. d3 {[%emt 0:00:11]} (7. d4 $16) 7... Bb7 {[%emt 0:00:03]} 8. O-O {[%emt 0:00:00] White is more active.} e6 {[%emt 0:00:01]} 9. h3 {[%emt 0:00:07]} (9. d4 $14 {is more appropriate.}) 9... Be7 $11 {[%emt 0:00:02]} 10. Re1 {[%emt 0:00:05]} O-O {[%emt 0:00:01]} 11. Bf4 {[%emt 0:00:05]} Qc7 {[%emt 0:00:04]} 12. a3 {[%emt 0:00:03]} Ne5 {[%emt 0:00:08]} 13. b4 {[%emt 0:00:12] [#]} b5 $1 {[%emt 0:00:46]} 14. Bb3 {[%emt 0:00:09]} Nfd7 {[%emt 0:01:12]} 15. Rc1 {[%emt 0:00:21]} bxc4 {[%emt 0:00:14]} 16. Bxc4 {[%emt 0:00:13]} Rfc8 {[%emt 0:00:16]} 17. b5 {[%emt 0:00:55]} Nxc4 {[%emt 0:00:07]} 18. dxc4 {[%emt 0:00:01]} e5 {[%emt 0:00:01]} 19. Bg5 {[%emt 0:00:08]} f6 {[%emt 0:00:14]} 20. Be3 {[%emt 0:00:21]} axb5 {[%emt 0:00:01]} 21. Nxb5 {[%emt 0:00:07]} Qc6 {[%emt 0:00:01]} 22. Nd2 {[%emt 0:00:25]} Nf8 {[%emt 0:00:01]} 23. Qg4 {[%emt 0:00:11]} Qd7 {[%emt 0:00:23]} (23... Rd8 {feels hotter.} 24. Nc3 Rxa3 25. Nd5 Qd7) 24. Qxd7 {[%emt 0:00:34]} Nxd7 {[%emt 0:00:00]} 25. f3 {[%emt 0:00:23]} Bc6 {[%emt 0:00:14]} 26. Ra1 {[%emt 0:00:17]} Bxb5 {[%emt 0:00:28]} 27. cxb5 {[%emt 0:00:01]} Nb6 {[%emt 0:00:00] Dodges Nc4} 28. a4 {[%emt 0:00:21] Black must now prevent a5.} Rxa4 {[%emt 0:00:12]} 29. Rxa4 {[%emt 0:00:03]} Nxa4 {[%emt 0:00:00]} 30. Nc4 {[%emt 0:00:18] [#]} (30. Ra1 $1 $11 Nb6 31. Ra7) 30... Rb8 $1 $17 {[%emt 0:00:03]} 31. Rb1 {[%emt 0:00:16] [#]} Nb6 {[%emt 0:00:49]} (31... Kf7 $1 $17 32. b6 Rb7) 32. Nxb6 $11 {[%emt 0:00:08]} Rxb6 {[%emt 0:00:00][%mdl 4096] Endgame KRB-KRB. Black is a pawn up.} 33. Kf1 {[%emt 0:00:00]} Kf7 {[%emt 0:00:01]} 34. Ke2 {[%emt 0:00:01]} Ke6 {[%emt 0:00:01]} 35. Kd3 {[%emt 0:00:00]} d5 {[%emt 0:00:02]} (35... f5 $11 {keeps the balance.}) 36. exd5+ $16 {[%emt 0:00:01]} Kxd5 {[%emt 0:00:00]} 37. Kc3 {[%emt 0:00:01]} Rb8 {[%emt 0:01:26]} (37... Kd6 $14) 38. Rd1+ {[%emt 0:00:01][%mdl 1024] White has strong compensation.} Ke6 {[%emt 0:00:01]} 39. Kc4 {[%emt 0:00:00]} f5 {[%emt 0:00:00]} 40. Ra1 {[%emt 0:00:04]} (40. Bxc5 Rc8 41. Rd5 e4 (41... f4 42. b6 $16)) 40... e4 {[%emt 0:00:31]} 41. Ra6+ {[%emt 0:00:06]} (41. Bxc5 Bxc5 42. Kxc5 Rc8+ 43. Kb6 e3 $11) 41... Kd7 {[%emt 0:00:01]} 42. Ra7+ {[%emt 0:00:08]} (42. Bxc5 $6 Bxc5 43. Kxc5 e3 $11) 42... Ke6 {[%emt 0:00:01]} 43. Ra6+ {[%emt 0:00:01]} (43. Bxc5 $6 Bxc5 44. Kxc5 e3 $11) 43... Kd7 {[%emt 0:00:01]} 44. Ra7+ {[%emt 0:00:01]} (44. Bxc5 $6 Bxc5 45. Kxc5 e3 $14) 44... Ke6 {[%emt 0:00:01]} 45. Ra6+ {[%emt 0:00:01] Weighted Error Value: White=0.17 (very precise) /Black=0.17 (very precise)   Mistake:       	White=4     	Black=4      Inaccurate:     	White=2     	Black=4      OK:         	White=12    	Black=11     Best:        	White=6     	Black=5      Strong:       	---       	Black=1} ({But not} 45. Bxc5 $6 Bxc5 46. Kxc5 e3 $11) (45. fxe4 $16 fxe4 46. Bxc5 Bxc5 47. Kxc5) 1/2-1/2

[Event "CCT Chessable Masters Playoffs 2025"]
[Site "Online"]
[Date "2025.02.18"]
[Round "1"]
[White "Yu, Yangyi"]
[Black "So, Wesley"]
[Result "1-0"]
[Annotator "ChessBase"]
[ECO "E20"]
[WhiteElo "2715"]
[BlackElo "2747"]
[PlyCount "123"]
[EventDate "2025.02.13"]
[EventType "k.o."]
[EventCountry "NET"]
[SourceTitle "playchess.com"]
[Source "ChessBase"]
[SourceQuality "1"]
[TimeControl "600"]

1. d4 {[%emt 0:00:03]} Nf6 {[%emt 0:00:08]} 2. c4 {[%emt 0:00:01]} e6 {[%emt 0:00:02]} 3. Nc3 {[%emt 0:00:02]} Bb4 {[%emt 0:00:03]} 4. Nf3 {[%emt 0:00:02]} c5 {[%emt 0:00:03]} 5. g3 {[%emt 0:00:11]} Ne4 {[%emt 0:00:21]} 6. Qc2 {[%emt 0:00:29]} Qa5 {[%emt 0:00:40]} 7. Qxe4 {[%emt 0:00:24]} Bxc3+ {[%emt 0:00:01]} 8. Bd2 {[%emt 0:00:00]} Bxd2+ {[%emt 0:00:03]} 9. Nxd2 {[%emt 0:00:00]} Qb6 {[%emt 0:00:29]} 10. dxc5 {[%emt 0:01:04]} Qxb2 {[%emt 0:00:03]} 11. Rb1 {[%emt 0:00:06]} Qa3 {[%emt 0:01:13]} 12. Qd4 {[%emt 0:00:29]} O-O {[%emt 0:00:04]} 13. Bg2 {[%emt 0:00:03]} Na6 {[%emt 0:00:02]} 14. Nb3 {[%emt 0:01:08]} Qb4+ {[%emt 0:00:19]} 15. Qd2 {[%emt 0:00:27]} Qxc4 {[%emt 0:00:41]} 16. O-O {[%emt 0:01:10]} Nxc5 {[%emt 0:00:08]} 17. Rfc1 {[%emt 0:00:01]} Nxb3 {[%emt 0:00:02]} 18. Rxb3 {[%emt 0:00:00]} Qa6 {[%emt 0:00:18]} 19. Rc7 {[%emt 0:00:01]} d5 {[%emt 0:00:09]} 20. Rbc3 {[%emt 0:00:43]} Qd6 {[%emt 0:00:18]} 21. Qd4 {[%emt 0:00:18]} b6 {[%emt 0:01:42]} 22. e4 {[%emt 0:00:05]} Rd8 {[%emt 0:00:04]} 23. exd5 {[%emt 0:00:03]} exd5 {[%emt 0:00:00]} 24. R3c6 {[%emt 0:00:18]} Qf8 {[%emt 0:00:10]} 25. h4 {[%emt 0:00:59]} Bd7 {[%emt 0:00:05]} 26. Rc3 {[%emt 0:00:04]} Be6 {[%emt 0:00:02]} 27. Kh2 {[%emt 0:00:06]} h6 {[%emt 0:00:01]} 28. a4 {[%emt 0:00:03]} Rdc8 {[%emt 0:00:04]} 29. Qe5 {[%emt 0:00:16]} Rxc7 {[%emt 0:00:07]} 30. Rxc7 {[%emt 0:00:01]} Rd8 {[%emt 0:00:05]} 31. Qd4 {[%emt 0:00:21]} Rc8 {[%emt 0:00:38]} 32. Rxa7 {[%emt 0:00:02]} Qc5 {[%emt 0:00:00]} 33. Qf4 {[%emt 0:00:11]} d4 {[%emt 0:00:05]} 34. Bh3 {[%emt 0:00:01]} Rf8 {[%emt 0:00:10]} 35. Rc7 {[%emt 0:00:06]} Qd5 {[%emt 0:00:33]} 36. Bg2 {[%emt 0:00:01]} Qd8 {[%emt 0:00:01]} 37. Rc6 {[%emt 0:00:00]} Qd7 {[%emt 0:00:11]} 38. Rxb6 {[%emt 0:00:04]} Qxa4 {[%emt 0:00:01]} 39. Rd6 {[%emt 0:00:01]} Qc4 {[%emt 0:00:05]} 40. Qxd4 {[%emt 0:00:01]} Qxd4 {[%emt 0:00:01]} 41. Rxd4 {[%emt 0:00:00]} Rc8 {[%emt 0:00:01]} 42. Bh3 {[%emt 0:00:02]} Bxh3 {[%emt 0:00:02]} 43. Kxh3 {[%emt 0:00:00]} Kf8 {[%emt 0:00:01]} 44. Kg2 {[%emt 0:00:00]} Re8 {[%emt 0:00:01]} 45. Rd3 {[%emt 0:00:01]} h5 {[%emt 0:00:00]} 46. Kf3 {[%emt 0:00:00]} g6 {[%emt 0:00:01]} 47. Re3 {[%emt 0:00:01]} Rd8 {[%emt 0:00:01]} 48. Re4 {[%emt 0:00:00]} Rd7 {[%emt 0:00:01]} 49. Re3 {[%emt 0:00:01]} Kg7 {[%emt 0:00:00]} 50. Re4 {[%emt 0:00:00]} Kf6 {[%emt 0:00:01]} 51. Re3 {[%emt 0:00:01]} Rd4 {[%emt 0:00:00]} 52. Re4 {[%emt 0:00:00]} Rd3+ {[%emt 0:00:01]} 53. Re3 {[%emt 0:00:01]} Rd2 {[%emt 0:00:01]} 54. Re4 {[%emt 0:00:01]} Rd5 {[%emt 0:00:00]} 55. Rf4+ {[%emt 0:00:01]} Rf5 {[%emt 0:00:01]} 56. Ke4 {[%emt 0:00:01]} Rxf4+ {[%emt 0:00:01]} 57. Kxf4 {[%emt 0:00:00]} Ke6 {[%emt 0:00:06]} 58. Kg5 {[%emt 0:00:00]} Ke5 {[%emt 0:00:01]} 59. f3 {[%emt 0:00:01]} Ke6 {[%emt 0:00:11]} 60. f4 {[%emt 0:00:01]} Kd5 {[%emt 0:00:06]} 61. Kf6 {[%emt 0:00:02]} Ke4 {[%emt 0:00:07]} 62. Kxf7 {[%emt 0:00:01]} 1-0

[Event "CCT Chessable Masters Playoffs 2025"]
[Site "Online"]
[Date "2025.02.18"]
[Round "1"]
[White "Esipenko, Andrey"]
[Black "Carlsen, Magnus"]
[Result "0-1"]
[Annotator "TA"]
[ECO "E43"]
[WhiteElo "2695"]
[BlackElo "2833"]
[PlyCount "68"]
[EventDate "2025.02.13"]
[EventType "k.o."]
[EventCountry "NET"]
[SourceTitle "playchess.com"]
[Source "ChessBase"]
[SourceQuality "1"]
[TimeControl "600"]

{[%evp 16,68,25,25,33,35,41,17,84,0,0,0,0,0,0,-27,22,-3,79,-46,-36,-47,-7,0,199,201,193,191,185,153,101,131,521,228,282,91,88,0,0,-58,0,0,66,71,82,78,143,27,58,3,8,0,0,-465,-456]} 1. d4 {[%emt 0:00:00]} Nf6 {[%emt 0:00:01]} 2. c4 {[%emt 0:00:01]} e6 {[%emt 0:00:00]} 3. Nc3 {[%emt 0:00:00]} Bb4 {[%emt 0:00:01]} 4. Nf3 {[%emt 0:00:03]} b6 {[%emt 0:00:03]} 5. e3 {[%emt 0:00:02]} Bb7 {[%emt 0:00:11]} 6. Bd3 {[%emt 0:00:03]} O-O {[%emt 0:00:00]} 7. O-O {[%emt 0:00:02]} c5 {[%emt 0:00:00]} 8. Na4 {[%emt 0:00:03]} cxd4 {[%emt 0:00:01]} 9. exd4 {[%emt 0:00:00]} Bxf3 {[%emt 0:00:10] E43: Nimzo-Indian: Rubinstein: 4...b6.} 10. Qxf3 {[%emt 0:00:03]} Nc6 {[%emt 0:00:00]} 11. Be3 {[%emt 0:00:14]} e5 $5 {[%emt 0:00:02][%mdl 4] A promising side line.} (11... Be7 $11) 12. a3 $146 {[%emt 0:00:43]} (12. d5 $1 $16 {[%cal Rd5c6]} Na5 13. Bg5) (12. d5 e4 13. Bxe4 Ne5 14. Qf4 Re8 15. Bf3 Bd6 16. Qd4 Nxf3+ 17. gxf3 Qc7 18. Nc3 Bxh2+ {0-1 Mamedyarov,S (2800)-Karjakin,S (2781) Paris GCT Blitz 2017 (14)}) 12... exd4 $11 {[%emt 0:00:38]} 13. Bf4 {[%emt 0:00:02] White sacrificed a pawn. A sharp opening} Be7 {[%emt 0:00:04]} 14. b4 {[%emt 0:00:01]} Re8 {[%emt 0:00:10]} 15. Rfe1 {[%emt 0:00:24]} Bf8 {[%emt 0:00:04]} (15... Rc8 $142) 16. g4 {[%emt 0:00:12]} Rc8 {[%emt 0:00:56]} (16... Re6 $11) 17. c5 {[%emt 0:01:19]} ({Only move:} 17. g5 $16) 17... bxc5 $15 {[%emt 0:00:02]} 18. g5 {[%emt 0:00:06]} Rxe1+ {[%emt 0:00:02]} (18... cxb4 $5 19. Ba6 (19. gxf6 Qxf6 20. Qh3 g6 $17) 19... Rxe1+ 20. Rxe1 Ne8 21. Bxc8 Qxc8 22. axb4 Nc7 $15 (22... Bxb4 23. Rb1 $15) (22... Nxb4 23. Rc1 $15)) 19. Rxe1 {[%emt 0:00:01]} Ne8 $2 {[%emt 0:00:03] [#]} (19... cxb4 $11 {and Black has nothing to worry.} 20. gxf6 Qxf6) 20. Bc4 $1 $18 {[%emt 0:00:07]} (20. bxc5 Qa5 21. Qd1 (21. Qe4 g6 $17) 21... g6 $17 (21... Bxc5 $2 22. Bd2 $18)) (20. Nxc5 Bxc5 21. bxc5 Nc7 $16) 20... d5 {[%emt 0:01:16]} (20... cxb4 $2 21. Bxf7+ (21. Qd5 Nd6 $11) 21... Kxf7 22. Bc7+ Kg8 23. Bxd8 Rxd8 24. Nc5 $18) 21. Bxd5 {[%emt 0:00:05]} Qd7 {[%emt 0:00:02] Black is weak on the light squares} (21... Ne7 $2 22. Bxf7+ Kh8 23. Nxc5 $18 (23. bxc5 Qa5 $18)) 22. Nxc5 {[%emt 0:00:10]} Bxc5 {[%emt 0:00:11]} 23. bxc5 {[%emt 0:00:01][%cal Of4d6]} Ne7 $2 {[%emt 0:01:19][%mdl 8192]} (23... g6 $16 {is a better chance.} 24. h4 Ng7) 24. Bb3 {[%emt 0:02:14] This pair of bishops is nice.} (24. Bxf7+ $142 Kxf7 25. Bd6+ Kg6 26. Rxe7 (26. Bxe7 Qf5 $18)) 24... Rxc5 {[%emt 0:00:28]} 25. Qe4 {[%emt 0:00:18] Wards off Ng6} (25. Bg3 $18 Rf5 26. Qe4) 25... Kf8 $16 {[%emt 0:00:21]} 26. Qxh7 {[%emt 0:00:14]} ({White should try} 26. Bd2 $16 {[%cal Ob3a4] Black must now prevent Ba4!.} Nd6 27. Qxd4) 26... Ng6 $11 {[%emt 0:00:09][%cal Od4d3] Repels Ba4} 27. h3 {[%emt 0:00:45]} Rc3 {[%emt 0:00:17]} (27... a5 $15) 28. Be6 {[%emt 0:00:26]} fxe6 {[%emt 0:01:17]} ({Better is} 28... Qb5 $11) 29. Qxg6 $14 {[%emt 0:00:01]} Qf7 {[%emt 0:00:05]} 30. Qe4 {[%emt 0:00:02]} (30. Rxe6 Qxg6 31. Rxg6 Rxa3 $14) 30... Rxh3 {[%emt 0:00:05] [#]} (30... Qf5 $142) 31. Qxd4 {[%emt 0:00:21]} (31. Qxe6 $6 Qxe6 32. Rxe6 Rxa3 $14) (31. Bd2 $1 $16) 31... Qf5 {[%emt 0:00:06] aiming for ...Qg4+.} 32. Bg3 {[%emt 0:00:04]} (32. Qe5 $14) 32... Qxg5 $11 {[%emt 0:00:24]} 33. Qb4+ {[%emt 0:00:22]} Kg8 {[%emt 0:00:14]} 34. Rxe6 $2 {[%emt 0:00:39][%mdl 8192]} (34. Qb3 $11 {and White stays safe.} Kh7 35. Kg2 (35. Rxe6 {leads to mate.} Qc1+) (35. Qxe6 Rxg3+ 36. fxg3 Qxg3+ 37. Kh1 Qf3+ 38. Kh2 Qf2+ 39. Kh1 Qf3+ 40. Kh2 Qf2+ 41. Kh1 Qf3+ $11)) 34... Rxg3+ $1 {[%emt 0:00:05] What a bad dream for White.   Weighted Error Value: White=0.74/Black=0.46  Loses game:     	White=1     	Black=2      Missed win:     	White=1     	---        Mistake:       	White=7     	Black=6      Inaccurate:     	White=1     	Black=2      OK:         	White=6     	Black=7      Best:        	White=1     	Black=3      Strong:       	White=1     	Black=1} 0-1

[Event "CCT Chessable Masters Playoffs 2025"]
[Site "Online"]
[Date "2025.02.18"]
[Round "1"]
[White "Esipenko, Andrey"]
[Black "Carlsen, Magnus"]
[Result "1/2-1/2"]
[Annotator "ChessBase"]
[ECO "D35"]
[WhiteElo "2695"]
[BlackElo "2833"]
[PlyCount "180"]
[EventDate "2025.02.13"]
[EventType "k.o."]
[EventCountry "NET"]
[SourceTitle "playchess.com"]
[Source "ChessBase"]
[SourceQuality "1"]
[TimeControl "600"]

1. d4 {[%emt 0:00:01]} Nf6 {[%emt 0:00:03]} 2. c4 {[%emt 0:00:00]} e6 {[%emt 0:00:01]} 3. Nc3 {[%emt 0:00:01]} d5 {[%emt 0:00:03]} 4. cxd5 {[%emt 0:00:01]} exd5 {[%emt 0:00:01]} 5. Bg5 {[%emt 0:00:01]} Be7 {[%emt 0:00:05]} 6. e3 {[%emt 0:00:02]} h6 {[%emt 0:00:02]} 7. Bh4 {[%emt 0:00:04]} c6 {[%emt 0:00:04]} 8. Bd3 {[%emt 0:00:03]} O-O {[%emt 0:00:06]} 9. Bg3 {[%emt 0:00:14]} Re8 {[%emt 0:00:06]} 10. Nf3 {[%emt 0:00:03]} Nbd7 {[%emt 0:00:08]} 11. h3 {[%emt 0:00:28]} Bb4 {[%emt 0:00:16]} 12. Nd2 {[%emt 0:00:16]} Nf8 {[%emt 0:00:02]} 13. O-O {[%emt 0:00:10]} Bd6 {[%emt 0:00:02]} 14. Bxd6 {[%emt 0:00:07]} Qxd6 {[%emt 0:00:00]} 15. Qc2 {[%emt 0:00:20]} Bd7 {[%emt 0:00:29]} 16. b4 {[%emt 0:00:29]} Ne6 {[%emt 0:00:08]} 17. Nf3 {[%emt 0:00:38]} a5 {[%emt 0:00:12]} 18. bxa5 {[%emt 0:00:07]} Rxa5 {[%emt 0:00:03]} 19. a4 {[%emt 0:00:01]} c5 {[%emt 0:00:03]} 20. Nb5 {[%emt 0:00:07]} Qe7 {[%emt 0:00:04]} 21. Bf5 {[%emt 0:01:47]} Rea8 {[%emt 0:00:13]} 22. Rab1 {[%emt 0:00:23]} c4 {[%emt 0:00:17]} 23. Ne5 {[%emt 0:00:15]} Be8 {[%emt 0:00:14]} 24. Nc3 {[%emt 0:00:53]} Bxa4 {[%emt 0:00:03]} 25. Nxa4 {[%emt 0:00:00]} Rxa4 {[%emt 0:00:00]} 26. Rb5 {[%emt 0:00:07]} Nd8 {[%emt 0:00:20]} 27. Rfb1 {[%emt 0:00:19]} Ra1 {[%emt 0:00:03]} 28. Ng4 {[%emt 0:00:06]} Ne4 {[%emt 0:00:51]} 29. Bxe4 {[%emt 0:01:01]} Qxe4 {[%emt 0:00:02]} 30. Qxe4 {[%emt 0:00:04]} dxe4 {[%emt 0:00:00]} 31. Rxa1 {[%emt 0:00:00]} Rxa1+ {[%emt 0:00:02]} 32. Kh2 {[%emt 0:00:01]} Ra6 {[%emt 0:00:37]} 33. Ne5 {[%emt 0:00:30]} c3 {[%emt 0:00:02]} 34. Rc5 {[%emt 0:00:01]} f6 {[%emt 0:00:02]} 35. Ng6 {[%emt 0:00:00]} Kf7 {[%emt 0:00:50]} 36. Nh8+ {[%emt 0:00:01]} Ke8 {[%emt 0:00:08]} 37. Rxc3 {[%emt 0:00:04]} f5 {[%emt 0:00:01]} 38. h4 {[%emt 0:00:11]} h5 {[%emt 0:00:03]} 39. Rc8 {[%emt 0:00:05]} Rf6 {[%emt 0:00:26]} 40. Kg3 {[%emt 0:00:04]} b5 {[%emt 0:00:41]} 41. Kf4 {[%emt 0:00:03]} b4 {[%emt 0:00:50]} 42. Rb8 {[%emt 0:00:02]} Rh6 {[%emt 0:00:03]} 43. Rxb4 {[%emt 0:00:03]} Rxh8 {[%emt 0:00:12]} 44. Rb5 {[%emt 0:00:02]} g6 {[%emt 0:00:14]} 45. d5 {[%emt 0:00:07]} Ke7 {[%emt 0:00:04]} 46. Rb6 {[%emt 0:00:02]} Rg8 {[%emt 0:00:02]} 47. Ke5 {[%emt 0:00:01]} Nf7+ {[%emt 0:00:01]} 48. Kd4 {[%emt 0:00:00]} Nd6 {[%emt 0:00:02]} 49. Ra6 {[%emt 0:00:03]} Rd8 {[%emt 0:00:16]} 50. Rc6 {[%emt 0:00:03]} Ra8 {[%emt 0:00:09]} 51. Ke5 {[%emt 0:00:02]} Nf7+ {[%emt 0:00:01]} 52. Kf4 {[%emt 0:00:01]} Rd8 {[%emt 0:00:06]} 53. Re6+ {[%emt 0:00:03]} Kf8 {[%emt 0:00:02]} 54. Rxg6 {[%emt 0:00:00]} Rxd5 {[%emt 0:00:01]} 55. Rf6 {[%emt 0:00:00]} Rd2 {[%emt 0:00:02]} 56. Rxf5 {[%emt 0:00:01]} Rxf2+ {[%emt 0:00:05]} 57. Kxe4 {[%emt 0:00:00]} Rxg2 {[%emt 0:00:01]} 58. Rxh5 {[%emt 0:00:00]} Ke7 {[%emt 0:00:00]} 59. Ra5 {[%emt 0:00:01]} Rg4+ {[%emt 0:00:02]} 60. Kf3 {[%emt 0:00:01]} Rxh4 {[%emt 0:00:00]} 61. Ra7+ {[%emt 0:00:00]} Kf6 {[%emt 0:00:02]} 62. Ra6+ {[%emt 0:00:00]} Kf5 {[%emt 0:00:02]} 63. Ra5+ {[%emt 0:00:00]} Ne5+ {[%emt 0:00:01]} 64. Kg3 {[%emt 0:00:01]} Rg4+ {[%emt 0:00:01]} 65. Kf2 {[%emt 0:00:01]} Rb4 {[%emt 0:00:01]} 66. Kg3 {[%emt 0:00:00]} Ke4 {[%emt 0:00:01]} 67. Ra8 {[%emt 0:00:01]} Kxe3 {[%emt 0:00:01]} 68. Re8 {[%emt 0:00:00]} Rg4+ {[%emt 0:00:01]} 69. Kh3 {[%emt 0:00:01]} Rg5 {[%emt 0:00:01]} 70. Kh4 {[%emt 0:00:01]} Rf5 {[%emt 0:00:01]} 71. Kg3 {[%emt 0:00:01]} Ke4 {[%emt 0:00:02]} 72. Rg8 {[%emt 0:00:00]} Rf3+ {[%emt 0:00:02]} 73. Kg2 {[%emt 0:00:00]} Ke3 {[%emt 0:00:02]} 74. Re8 {[%emt 0:00:00]} Rf5 {[%emt 0:00:02]} 75. Kg3 {[%emt 0:00:01]} Kd4 {[%emt 0:00:03]} 76. Rd8+ {[%emt 0:00:00]} Ke4 {[%emt 0:00:01]} 77. Rg8 {[%emt 0:00:01]} Rf1 {[%emt 0:00:04]} 78. Kg2 {[%emt 0:00:00]} Ra1 {[%emt 0:00:00]} 79. Re8 {[%emt 0:00:00]} Ra3 {[%emt 0:00:02]} 80. Rf8 {[%emt 0:00:01]} Ng6 {[%emt 0:00:02]} 81. Re8+ {[%emt 0:00:01]} Kf4 {[%emt 0:00:01]} 82. Rg8 {[%emt 0:00:00]} Nh4+ {[%emt 0:00:01]} 83. Kf2 {[%emt 0:00:00]} Ra2+ {[%emt 0:00:01]} 84. Ke1 {[%emt 0:00:00]} Nf3+ {[%emt 0:00:01]} 85. Kd1 {[%emt 0:00:00]} Nd4 {[%emt 0:00:00]} 86. Re8 {[%emt 0:00:01]} Kf3 {[%emt 0:00:01]} 87. Kc1 {[%emt 0:00:01]} Ne2+ {[%emt 0:00:01]} 88. Kb1 {[%emt 0:00:00]} Nc3+ {[%emt 0:00:00]} 89. Kc1 {[%emt 0:00:01]} Rg2 {[%emt 0:00:01]} 90. Re3+ {[%emt 0:00:00]} Kxe3 {[%emt 0:00:02]} 1/2-1/2